Cogmind - Beta 9.5 @@@ ROGUE MODE // 2020.04.07 @ 19:11:44 Player: V_ Result: Destroyed by G-34 Mercenary with Small Laser Performance ------------- Evolutions (0) 0 Regions Visited (1) 200 Robots Destroyed (9) 45 Value Destroyed (117) 117 Prototype IDs (0) 0 Alien Tech Used (0) 0 Bonus (0) 0 TOTAL SCORE: 362 Bonus ------- None Cogmind --------- Core Integrity 0/250 Matter 300/300 Energy 100/100 System Corruption 0% Temperature Cool (6) Movement Core (50) Location -10/Materials Parts ------- > --- POWER (1) -------- (None) > --- PROPULSION (2) --- (None) > --- UTILITY (2) ------ Improved Terrain Scanner Seismic Analyzer > --- WEAPON (2) ------- (None) > --- INVENTORY (4) ---- Light Ion Engine Signal Interpreter Mining Laser Mining Laser Peak State ------------ > --- POWER ------------ Light Ion Engine > --- PROPULSION ------- Aluminum Leg Aluminum Leg > --- UTILITY ---------- Improved Terrain Scanner Seismic Analyzer > --- WEAPON ----------- Medium Laser Light Assault Rifle > --- INVENTORY -------- Light Ion Engine Small Storage Unit Small Laser [Rating: 8] Favorites ----------- Power Light Ion Engine Engine Light Ion Engine Propulsion Aluminum Leg Leg Aluminum Leg Utility Seismic Analyzer Device Improved Terrain Scanner Storage Small Storage Unit Processor Seismic Analyzer Weapon Light Assault Rifle Energy Gun Medium Laser Ballistic Gun Light Assault Rifle Special Weapon Mining Laser Build | -11 -10 ------- Run | Scr Mat Slots Evolved . | . . Power . | . . Propulsion . | . . Utility . | . . Weapon . | . . Parts Attached 14 | 12 2 Power 2 | 2 . Engine 2 | 2 . Core . | . . Reactor . | . . Propulsion 2 | 2 . Treads . | . . Leg 2 | 2 . Wheel . | . . Hover . | . . Flight . | . . Utility 3 | 3 . Device 1 | 1 . Storage 1 | 1 . Processor 1 | 1 . Hackware . | . . Protection . | . . Artifact . | . . Weapon 7 | 5 2 Energy Gun 3 | 2 1 Energy Cannon . | . . Ballistic Gun 2 | 1 1 Ballistic Cannon . | . . Launcher . | . . Special Weapon 2 | 2 . Impact Weapon . | . . Slashing Weapon . | . . Piercing Weapon . | . . Special Melee Weapon . | . . Unidentified Prototypes . | . . Parts Lost 5 | . 5 Power 1 | . 1 Propulsion 2 | . 2 Utility . | . . Weapon 2 | . 2 Highest Loss Streak 5 | . 5 Average Slot Usage (%) 98 | . 98 Engine 14 | . 14 Leg 27 | . 27 Device 14 | . 14 Processor 14 | . 14 Energy Gun 7 | . 7 Ballistic Gun 7 | . 7 Special Weapon 12 | . 12 Naked Turns . | . . Heaviest Build 10 | 10 7 Greatest Support 20 | 20 20 Greatest Overweight (x) 1 | 1 . Average Overweight (x) . | . . Largest Inventory Capacity 6 | 6 4 Average Capacity 4 | 4 4 Most Carried 4 | 4 4 Average Carried 3 | 2 3 Final Capacity 4 | 4 4 Final Carried 4 | 4 4 Class Distribution -------------------- 67% | Scavenger-Mutant 32% | Mutant Dominant Class ---------------- Mutant | -10/Materials Resources | -11 -10 ----------- Run | Scr Mat Matter Collected 368 | 320 48 Remotely . | . . Salvage Created 213 | 144 69 Parts 22 | 19 3 Haulers Intercepted . | . . Recyclers Shooed . | . . Parts Field Recycled . | . . Retrieved Matter . | . . Parts Self-Destructed . | . . Prevented . | . . Kills | -11 -10 ------- Run | Scr Mat Combat Hostiles Destroyed 2 | . 2 Guns 2 | . 2 Classes Destroyed 2 | 1 1 Tunneler 7 | 7 . Grunt 2 | . 2 Best Kill Streak 4 | 4 1 Combat Bots Only 1 | . 1 Max Kills in Single Turn 1 | 1 1 Gunslinging . | . . Exploded . | . . Melee . | . . Uniques/NPCs Destroyed . | . . Combat | -11 -10 -------- Run | Scr Mat Damage Taken 634 | . 634 Core 257 | . 257 Absorbed by Shields . | . . Core Remaining (%) 100 | 100 . Volleys Fired 40 | 23 17 Largest 2 | 2 2 Hottest 200 | 200 200 Shots Fired 74 | 46 28 Gun 62 | 40 22 Cannon . | . . Launcher . | . . Special 12 | 6 6 Kinetic 34 | 20 14 Thermal 40 | 26 14 Explosive . | . . Electromagnetic . | . . Robot Hit Streak 5 | 5 3 Robot Miss Streak 11 | 3 11 Penetration Max . | . . Secondary Targets . | . . Shots Hit Robots 32 | 25 7 Core Hits 12 | 8 4 Critical Hits 1 | 1 . Critical Kills 1 | 1 . Critical Parts Destroyed . | . . Melee Attacks . | . . Impact . | . . Slashing . | . . Piercing . | . . Sneak Attacks . | . . Combat Hostiles . | . . Follow-up Attacks . | . . Damage Inflicted 362 | 290 72 Guns 362 | 290 72 Cannons . | . . Explosions . | . . Melee . | . . Ramming . | . . Kinetic 147 | 88 59 Thermal 215 | 202 13 Explosive . | . . Electromagnetic . | . . Impact . | . . Slashing . | . . Piercing . | . . Highest Corruption . | . . Average Corruption . | . . Corruption Purged . | . . Overload Shots . | . . Overflow Damage . | . . Projectiles . | . . Explosions . | . . Melee . | . . Knockbacks . | . . Impact . | . . Kinetic . | . . Secondary . | . . Self-Inflicted Damage . | . . Shots . | . . Rammed . | . . Targets Rammed . | . . Kicked . | . . Crushed . | . . Highest Temperature 146 | 100 146 Average Temperature 37 | 33 43 Received Heat Transfer 321 | . 321 Siege Activations . | . . Robots Corrupted . | . . Combat Hostiles . | . . Parts Fried . | . . Impact Corruptions . | . . Robots Melted . | . . Combat Hostiles . | . . Parts Melted . | . . Heat Transferred 629 | 592 37 Parts Sabotaged . | . . Parts Stolen . | . . Parts Stripped . | . . Power Chain Reactions . | . . Missiles Intercepted . | . . Alert | -11 -10 ------- Run | Scr Mat Peak Influence 57 | 35 57 Average Influence 24 | 16 31 Maximum Alert Level . | . . Low Security (%) 100 | 100 100 Level 1 . | . . Level 2 . | . . Level 3 . | . . Level 4 . | . . Level 5 . | . . High Security . | . . Max Security . | . . Squads Dispatched 2 | . 2 Investigation . | . . Extermination . | . . Reinforcement 2 | . 2 Assault . | . . Garrison . | . . Intercept . | . . Construction Impeded . | . . Haulers Reinforced . | . . Stealth | -11 -10 --------- Run | Scr Mat Distress Signals . | . . Communications Jammed . | . . Distress Signals . | . . Times Spotted 9 | . 9 Peak Tracking Total 6 | . 6 Tactical Retreats . | . . Traps | -11 -10 ------- Run | Scr Mat Traps Triggered . | . . Indirectly . | . . Trap Hack Attempts . | . . Triggered . | . . Disarmed . | . . Reprogrammed . | . . Reused . | . . Traps Extracted . | . . Installed . | . . Triggered . | . . Machines | -11 -10 ---------- Run | Scr Mat Machines Disabled . | . . Max in Single Turn . | . . Machines Sabotaged . | . . Garrisons Compromised . | . . Overloaded Fab Kills . | . . Fab Network Shutdowns . | . . Hacking | -11 -10 --------- Run | Scr Mat Machines Accessed 1 | . 1 Terminals 1 | . 1 Fabricators . | . . Repair Stations . | . . Recycling Units . | . . Scanalyzers . | . . Garrison Access . | . . Total Hacks 4 | . 4 Successful 2 | . 2 Failed 2 | . 2 Catastrophic . | . . Database Lockouts . | . . Manual . | . . Terminals 4 | . 4 Fabricators . | . . Repair Stations . | . . Recycling Units . | . . Scanalyzers . | . . Garrison Access . | . . Terminal Hacks 2 | . 2 Record 1 | . 1 Alert Level 1 | . 1 Fabricator Hacks . | . . Repair Station Hacks . | . . Recycling Unit Hacks . | . . Scanalyzer . | . . Garrison Access Hacks . | . . Unauthorized Hacks . | . . Terminals . | . . Fabricators . | . . Repair Stations . | . . Recycling Units . | . . Scanalyzers . | . . Garrison Access . | . . Data Cores Recovered . | . . Used . | . . Hacking Detections 1 | . 1 Full Trace Events . | . . Feedback Events . | . . Feedback Blocked . | . . Robot Schematics Acquired . | . . Robots Built . | . . Matter . | . . Time . | . . Total Robot Build Rating . | . . Part Schematics Acquired . | . . Parts Built . | . . Matter . | . . Time . | . . Total Part Build Rating . | . . Parts Repaired . | . . Time . | . . Parts Recycled . | . . Recycled Matter . | . . Retrieved Matter . | . . Retrieved Components . | . . Parts Scanalyzed . | . . Part Schematics Acquired . | . . Parts Damaged . | . . Bothacking | -11 -10 ------------ Run | Scr Mat Used RIF Installer . | . . Robots Hacked . | . . Non-combat . | . . Combat . | . . Robot Hacks Applied . | . . Relay Couplers Released . | . . Robots Rewired . | . . Allies Hacked . | . . Hacks Repelled . | . . Allies | -11 -10 -------- Run | Scr Mat Total Allies . | . . Largest Group . | . . Highest-Rated Group . | . . Highest-Rated Ally . | . . Total Orders . | . . Ally Attacks . | . . Total Damage . | . . Kills . | . . Allies Corrupted . | . . Allies Melted . | . . Intel | -11 -10 ------- Run | Scr Mat Robot Analysis Total . | . . Derelict Logs Recovered . | . . Drone Launches . | . . Drone Recoveries . | . . Exploration | -11 -10 ------------- Run | Scr Mat Turns Passed 677 | 303 374 Spaces Moved 424 | 163 261 Core 15 | 15 . Treads . | . . Legs 409 | 148 261 Wheels . | . . Hover . | . . Flight . | . . Fastest Speed 50 | 50 120 Average Speed 117 | 114 120 Slowest Speed 120 | 120 120 Overloaded Moves . | . . Propulsion Burnouts . | . . Robots Hopped . | . . Cave-ins Triggered . | . . Exploration Rate (%) 14 | 7 21 Regions Visited 1 Branch Regions . Pre-discovered Areas . | . . Known Exits Taken . | . . Unknown Exits Taken 1 | 1 . Scrap Searched . | . . Spaces Dug 8 | 2 6 Terrain Destroyed 11 | 5 6 Melee . | . . Projectile 11 | 5 6 AOE . | . . Actions | -11 -10 --------- Run | Scr Mat Total 510 | 226 284 Wait 12 | 12 . Move 423 | 162 261 Hop . | . . Pick Up 15 | 13 2 Fast Attach . | . . Attach 9 | 9 . Detach 2 | 2 . Swap 5 | 3 2 Drop 4 | 2 2 Fire 40 | 23 17 Melee . | . . Ram . | . . Kick . | . . Crush . | . . Escape Stasis . | . . Rewire . | . . Trap . | . . Miscellaneous . | . . Route ------- -11/Scrapyard -10/Materials History --------- Turn | Location | Event 10 | -11/Scrapyard | Discovered new exit (range 15) 304 | -11/Scrapyard | Entered Materials 305 | -10/Materials | Build established: Scavenger-Mutant 644 | -10/Materials | Core integrity fell below 50% 671 | -10/Materials | Core integrity fell below 20% 678 | -10/Materials | Destroyed by G-34 Mercenary with Small Laser Last Messages --------------- Fusion Modulator explodes. G-34 Mercenary destroyed. K-01 Serf collects debris. G-34 Mercenary destroyed. K-01 Serf collects debris. R-06 Scavenger destroyed. Acquired 48 matter. K-01 Serf collects debris. Med. Laser destroyed. K-01 Serf collects debris. Aluminum Leg destroyed. K-01 Serf collects debris. Lgt. Ion Engine destroyed. K-01 Serf collects debris. U-05 Engineer lays Concrete. U-05 Engineer builds a Wall. K-01 Serf collects debris. G-34 Mercenary destroyed. R-06 Scavenger collects Lrg. Matter Pod. Lgt. Assault Rifle destroyed. Map ----- +----------------------------------------------------+ | ???????????????????##?####### # ##?# | | ??????????????????#?#??#?#??# """ # #??# | | ??????????????##???#?##?###?# """ + ##?# | | ???????????????##?#?## ? ?# """ # #?## | | ??????????????#?#???##????? # # ###### | | ????????????????????##? # """ ]# ###?## | | ?????????????????????# ? ? # """ # #???## | | ?????????????????? # ?? ? # """ # ###### | | ??????????????? ?? ??? # # ##?### | | ??????????????????T ?+ #####+## ###?## | | ??????????????????? ?#? ? # ### ##+###### | | ???????????????????? # # ### # # | | ????????????????????#? ?? ###?# # !!! # | | ??????????????##????#? ? ??##### # !!! # | | ????????????????#?? ##?? ?##?## # ! ! # | | ????????????????#? / ? ? ##### + # | | ??????????????#??? #####?####### ######### | | ??????????????????????? ? T # #### # | | ???????????????#? ??? ? ? ? # #### # | | ????????????##???? +? ? ? ? # #?## # | | ????????????#??##?????""? """ ? # #### # | | ????????????????# ? # """ """ # + # | | ???????????? ?? ??? # """ ""? # # "" # | | ?????????? ??????? ? ? ?? # # "T # | | ??????????"?????#? ############# + "" # | | ???????????""? "??? ###;;@;;;; ## # # | | ????????????"? ?# /u ; ## ###### | | ?????????? ?????# # ; # #?#### | | ???????????? ?#?? # k; ## ###### | | ????????#?#?###?????+ ;## ##?##? | | ????????????#????#?## ##???# | | ????????????????#?##; ;#### ##???? | | ?????????#?##???##?#* = #####+###### | | ????????#??#???#####;= ## #? | | ???????????######??#;g ! ; ## ## | | ?????? ???## ###gr;[k;;;;; ## ## | | ?????? g # ## | | ?????? + #? | | ?????? # #? | | ???????##### ############+#+# ## | | ??????????## ####???#?# ? ?? # #? | | ??????#?#??#??#??#?#?##?? ? ? ? # #? | | ???????????? ???????#?# ? ?? ##########? | | ??????????????#?##?##??? ??????#?????????? | | ???????????? ????????????####?#??????##???? | | ??????????? ?????? ??? ? ????? ???????? | | ??????????????? ???????? ?? ??????????????? | | ??????????????????? ? ??????? ?? ?????????? | | ?????????????? ?#?#????????##?????????????? | | ??????????????????????????????#?#?????????? | +----------------------------------------------------+ Best States ------------- Heat Dissipation 25 Energy Generation 10 Energy Capacity 125 Matter Stores 300 Matter Capacity 300 Sight Range 16 Terrain Scan Range 16 Terrain Scan Density 60 Evasion (%) 50 Item Schematics ----------------- None Robot Schematics ------------------ None Fabricated ------------ Nothing Alien Tech Used ----------------- None Achievements -------------- None Challenges ------------ None Game ------ Seed BackupNuclearCanceller Manual? 0 Play Time 00:14:00 Cumulative 0.7 hours Start 2020.04.07 @ 17:40:53 End 2020.04.07 @ 19:11:44 Sessions 2 Manual Loads 0 Difficulty Rogue Special Mode None Game No. 2 Rogue 2 Adventurer 0 Explorer 0 Win Type - Total 0 Types 0/0/0/0/0/0/0 Lore% 1 Gallery% 2 Achievement% 4 Wizard Run 0 Options --------- ASCII 0 Keyboard 0 Movement Arrows Keybinds 0 Fullscreen 1 Font 24/Smallcaps Map View 76x50 Tactical HUD 0 Map Filters NONE Filters NONE Steam 1 RUN: 9cdc840e-8646-4da0-ac5c-ccd0775d1213